lending/lending_fUSD_20240512
["ID","MTS","AMOUNT","RATE_DAILY","PERIOD"]
[326859974,1715519443846,-500.0,0.00012678,2]
[326859975,1715519443855,-500.0,0.00012678,2]
[326859976,1715519443865,-552.52642064,0.00012678,2]
[326859977,1715519443874,-500.0,0.00012678,2]
[326859978,1715519443883,-500.0,0.00012678,2]
[326859979,1715519443892,-526.197544,0.00012678,2]
[326859981,1715519443902,-856.76,0.00012678,2]
[326859983,1715519443911,-856.76,0.00012678,2]
[326859985,1715519443920,-500.0,0.00012678,2]
[326859987,1715519443930,-500.0,0.00012678,2]
[326859989,1715519443939,-524.97546475,0.00012678,2]
[326859991,1715519443949,-286.50487032,0.00012678,2]
[326859994,1715519443959,-591.91,0.00012678,2]
[326859996,1715519443968,-563.56,0.00012678,2]
[326859998,1715519443977,-591.91,0.00012678,2]
[326860000,1715519443987,-563.56,0.00012678,2]
[326860001,1715519443996,-1328.06,0.00012678,2]
[326860002,1715519444005,-1328.06,0.00012678,2]
[326860003,1715519444014,-524.42659372,0.00012678,2]
[326860004,1715519444023,-618.09,0.00012678,2]
[326860005,1715519444247,-618.09,0.00012678,2]
[326860006,1715519444258,-500.0,0.00012678,2]
[326860007,1715519444267,-500.0,0.00012678,2]
[326860008,1715519444277,-500.0,0.00012678,2]
[326860009,1715519444286,-500.0,0.00012678,2]
[326860010,1715519444296,-500.0,0.00012678,2]
[326860011,1715519444305,-500.0,0.00012678,2]
[326860012,1715519444314,-818.05,0.00012678,2]
[326860013,1715519444324,-818.05,0.00012678,2]
[326860014,1715519444333,-500.0,0.00012678,2]
[326860015,1715519444342,-500.0,0.00012678,2]
[326860016,1715519444352,-2130.6,0.00012678,2]
[326860017,1715519444361,-2130.6,0.00012678,2]
[326860018,1715519444370,-500.0,0.00012678,2]
[326860019,1715519444379,-500.0,0.00012678,2]
[326860020,1715519444388,-1463.66,0.00012678,2]
[326860021,1715519444397,-1463.66,0.00012678,2]
[326860022,1715519444407,-642.03,0.00012678,2]
[326860023,1715519444416,-642.03,0.00012678,2]
[326860024,1715519444426,-500.0,0.00012678,2]
[326860025,1715519444435,-500.0,0.00012678,2]
[326860026,1715519444445,-1261.77,0.00012678,2]
[326860027,1715519444457,-1261.77,0.00012678,2]
[326860028,1715519444466,-1300.41,0.00012678,2]
[326860029,1715519444476,-1300.41,0.00012678,2]
[326860030,1715519444486,-500.0,0.00012678,2]
[326860031,1715519444496,-500.0,0.00012678,2]
[326860032,1715519444505,-500.0,0.00012678,2]
[326860033,1715519444515,-528.06,0.00012678,2]
[326860034,1715519444524,-500.0,0.00012678,2]
[326860035,1715519444533,-528.06,0.00012678,2]
[326860036,1715519444543,-500.0,0.00012678,2]
[326860037,1715519444552,-500.0,0.00012678,2]
[326860038,1715519444562,-500.0,0.00012678,2]
[326860039,1715519444571,-500.0,0.00012678,2]
[326860040,1715519444580,-551.87,0.00012678,2]
[326860041,1715519444589,-551.87,0.00012678,2]
[326860042,1715519444599,-500.0,0.00012678,2]
[326860043,1715519444608,-507.36,0.00012678,2]
[326860044,1715519444617,-551.64125746,0.00012678,2]
[326860045,1715519444627,-507.36,0.00012678,2]
[326860046,1715519444637,-500.0,0.00012678,2]
[326860047,1715519444646,-500.0,0.00012678,2]
[326860048,1715519444655,-305.55662166,0.00012678,2]
[326860049,1715519444664,-1151.21,0.00012678,2]
[326860050,1715519444674,-1151.21,0.00012678,2]
[326860051,1715519444683,-500.0,0.00012678,2]
[326860052,1715519444692,-500.0,0.00012678,2]
[326860053,1715519444702,-500.0,0.00012678,2]
[326860054,1715519444711,-399.14345398,0.00012678,2]
[326860055,1715519444720,-364.342827,0.00012678,2]
[326860056,1715519444731,-500.0,0.00012678,2]
[326860057,1715519444740,-500.0,0.00012678,2]
[326860058,1715519444749,-500.0,0.00012678,2]
[326860059,1715519444759,-2055.8,0.00012678,2]
[326860060,1715519444768,-500.0,0.00012678,2]
[326860061,1715519444778,-505.98,0.00012678,2]
[326860062,1715519444787,-505.98,0.00012678,2]
[326860063,1715519444797,-2055.8,0.00012678,2]
[326860064,1715519444806,-850.21608695,0.00012678,2]
[326860065,1715519444815,-500.0,0.00012678,2]
[326860066,1715519444824,-528.4266494,0.00012678,2]
[326860067,1715519444834,-519.23544495,0.00012678,2]
[326860068,1715519444844,-500.0,0.00012678,2]
[326860069,1715519444855,-500.0,0.00012678,2]
[326860070,1715519444864,-860.02,0.00012678,2]
[326860071,1715519444874,-860.02,0.00012678,2]
[326860072,1715519444885,-500.0,0.00012678,2]
[326860073,1715519444894,-500.0,0.00012678,2]
[326860074,1715519444904,-500.0,0.00012678,2]
[326860075,1715519444913,-500.0,0.00012678,2]
[326860076,1715519444922,-500.0,0.00012678,2]
[326860077,1715519444932,-500.0,0.00012678,2]
[326860078,1715519444941,-500.0,0.00012678,2]
[326860079,1715519444951,-500.0,0.00012678,2]
[326860080,1715519444960,-500.0,0.00012678,2]
[326860081,1715519444969,-1767.54,0.00012678,2]
[326860082,1715519444979,-500.0,0.00012678,2]
[326860083,1715519444989,-518.71105039,0.00012678,2]
[326860084,1715519444998,-1767.54,0.00012678,2]
[326860085,1715519445007,-500.0,0.00012678,2]
[326860086,1715519445017,-500.0,0.00012678,2]
[326860087,1715519445026,-500.0,0.00012678,2]
[326860088,1715519445036,-524.0,0.00012678,2]
[326860089,1715519445045,-524.0,0.00012678,2]
[326860090,1715519445055,-905.5,0.00012678,2]
[326860091,1715519445064,-905.5,0.00012678,2]
[326860092,1715519445073,-824.53,0.00012678,2]
[326860093,1715519445082,-824.53,0.00012678,2]
[326860094,1715519445091,-2999.98,0.00012678,2]
[326860095,1715519445100,-2999.98,0.00012678,2]
[326860096,1715519445111,-618.61,0.00012678,2]
[326860097,1715519445121,-618.61,0.00012678,2]
[326860098,1715519445130,-500.0,0.00012678,2]
[326860099,1715519445139,-522.49430468,0.00012678,2]
[326860100,1715519445148,-3089.61,0.00012678,2]
[326860101,1715519445157,-3089.61,0.00012678,2]
[326860102,1715519445166,-682.47,0.00012678,2]
[326860103,1715519445175,-682.47,0.00012678,2]
[326860104,1715519445184,-612.27425745,0.00012678,2]
[326860105,1715519445194,-500.0,0.00012678,2]
[326860106,1715519445203,-500.0,0.00012678,2]
[326860107,1715519445212,-500.0,0.00012678,2]
[326860108,1715519445221,-531.16050248,0.00012678,2]
[326860109,1715519445231,-1614.73,0.00012678,2]
[326860110,1715519445240,-2682.78,0.00012678,2]
[326860111,1715519445250,-1614.73,0.00012678,2]
[326860112,1715519445259,-2682.78,0.00012678,2]
[326860113,1715519445268,-513.78390557,0.00012678,2]
[326860114,1715519445278,-1922.26,0.00012678,2]
[326860115,1715519445287,-1922.26,0.00012678,2]
[326860116,1715519445297,-500.0,0.00012678,2]
[326860117,1715519445306,-543.37275842,0.00012678,2]
[326860118,1715519445315,-500.0,0.00012678,2]
[326860119,1715519445324,-500.0,0.00012678,2]
[326860120,1715519445333,-498.65515383,0.00012678,2]
[326860121,1715519445342,-281.18529085,0.00012678,2]
[326860122,1715519445351,-500.0,0.00012678,2]
[326860123,1715519445360,-500.0,0.00012678,2]
[326860124,1715519445369,-1157.13,0.00012678,2]
[326860125,1715519445379,-1157.13,0.00012678,2]
[326860126,1715519445388,-500.0,0.00012678,2]
[326860127,1715519445397,-500.0,0.00012678,2]
[326860128,1715519445406,-500.0,0.00012678,2]
[326860129,1715519445415,-532.07,0.00012678,2]
[326860130,1715519445425,-527.1619475,0.00012678,2]
[326860131,1715519445434,-532.07,0.00012678,2]
[326860132,1715519445443,-500.0,0.00012678,2]
[326860133,1715519445454,-500.0,0.00012678,2]
[326860134,1715519445464,-500.0,0.00012678,2]
[326860135,1715519445473,-500.0,0.00012678,2]
[326860136,1715519445484,-634.19,0.00012678,2]
[326860137,1715519445494,-634.19,0.00012678,2]
[326860138,1715519445503,-500.0,0.00012678,2]
[326860139,1715519445513,-500.0,0.00012678,2]
[326860140,1715519445522,-2381.7,0.00012678,2]
[326860141,1715519445535,-2381.7,0.00012678,2]
[326860142,1715519445545,-500.0,0.00012678,2]
[326860143,1715519445554,-516.22024159,0.00012678,2]
[326860144,1715519445564,-601.61,0.00012678,2]
[326860145,1715519445573,-544.90337696,0.00012678,2]
[326860146,1715519445582,-601.61,0.00012678,2]
[326860147,1715519445593,-500.0,0.00012678,2]
[326860148,1715519445602,-922.63,0.00012678,2]
[326860149,1715519445611,-500.0,0.00012678,2]
[326860150,1715519445621,-922.63,0.00012678,2]
[326860151,1715519445630,-524.65,0.00012678,2]
[326860152,1715519445639,-524.65,0.00012678,2]
[326860153,1715519445649,-496.7264472,0.00012678,2]
[326860154,1715519445658,-500.0,0.00012678,2]
[326860155,1715519445667,-123.93740712,0.00012678,2]
[326860166,1715519446296,-376.06259288,0.00012678,2]
[326860167,1715519446306,-500.0,0.00012678,2]
[326860168,1715519446317,-500.0,0.00012678,2]
[326860169,1715519446406,-500.0,0.00012678,2]
[326860170,1715519446419,-500.0,0.00012678,2]
[326860171,1715519446428,-500.0,0.00012678,2]
[326860172,1715519446439,-500.0,0.00012678,2]
[326860173,1715519446448,-500.0,0.00012678,2]
[326860174,1715519446462,-500.0,0.00012678,2]
[326860175,1715519446472,-500.0,0.00012678,2]
[326860176,1715519446482,-500.0,0.00012678,2]
[326860177,1715519446491,-1208.33,0.00012678,2]
[326860178,1715519446501,-1208.33,0.00012678,2]
[326860179,1715519446510,-500.0,0.00012678,2]
[326860180,1715519446519,-500.0,0.00012678,2]
[326860181,1715519446528,-723.81,0.00012678,2]
[326860182,1715519446537,-723.81,0.00012678,2]
[326860183,1715519446547,-500.0,0.00012678,2]
[326860184,1715519446556,-1825.2,0.00012678,2]
[326860185,1715519446565,-1825.2,0.00012678,2]
[326860186,1715519446575,-500.0,0.00012678,2]
[326860188,1715519446584,-505.37,0.00012678,2]
[326860190,1715519446593,-505.37,0.00012678,2]
[326860192,1715519446603,-500.0,0.00012678,2]
[326860194,1715519446612,-500.0,0.00012678,2]
[326860196,1715519446621,-744.62,0.00012678,2]
[326860198,1715519446630,-744.62,0.00012678,2]
[326860200,1715519446639,-509.82965471,0.00012678,2]
[326860202,1715519446648,-1207.02,0.00012678,2]
[326860204,1715519446657,-1207.02,0.00012678,2]
[326860206,1715519446666,-500.0,0.00012678,2]
[326860208,1715519446675,-500.0,0.00012678,2]
[326860210,1715519446684,-530.19708322,0.00012678,2]
[326860212,1715519446694,-500.0,0.00012678,2]
[326860214,1715519446704,-500.0,0.00012678,2]
[326860216,1715519446713,-2674.47,0.00012678,2]
[326860218,1715519446723,-500.0,0.00012678,2]
[326860220,1715519446733,-2674.47,0.00012678,2]
[326860222,1715519446741,-500.0,0.00012678,2]
[326860224,1715519446750,-500.0,0.00012678,2]
[326860226,1715519446760,-623.68,0.00012678,2]
[326860228,1715519446769,-500.0,0.00012678,2]
[326860230,1715519446778,-623.68,0.00012678,2]
[326860232,1715519446787,-500.0,0.00012678,2]
[326860234,1715519446797,-516.86028296,0.00012678,2]
[326860236,1715519446806,-9404.38,0.00012678,2]
[326860238,1715519446816,-9404.38,0.00012678,2]
[326860240,1715519446824,-9404.38,0.00012678,2]
[326860242,1715519446833,-9404.38,0.00012678,2]
[326860244,1715519446842,-5805.66609704,0.00012678,2]
[326860246,1715519446859,-479.74318027,0.00012678,2]
[326860255,1715519446926,-937.9,0.00012677,2]
[326860257,1715519446935,-3118.97072269,0.00012678,2]
[326860259,1715519446945,-9404.38,0.00012678,2]
[326860261,1715519446954,-1228.65,0.00012678,2]
[326860263,1715519446963,-9404.38,0.00012678,2]
[326860265,1715519446971,-1228.65,0.00012678,2]
[326860267,1715519446980,-8140.32246047,0.00012678,2]
[326860332,1715519447586,-632.93885104,0.00011686,2]
[326860376,1715519448422,-248.62811859,0.00011043,2]
[326860377,1715519448432,-40.86618994,0.00011686,2]
[326860378,1715519448443,-495.84008902,0.00011686,2]
[326860379,1715519448454,-937.9,0.00012677,2]
[326860380,1715519448464,-937.9,0.00012677,2]
[326860381,1715519448478,-937.9,0.00012677,2]
[326860382,1715519448489,-937.9,0.00012677,2]
[326860383,1715519448498,-937.9,0.00012677,2]
[326860384,1715519448508,-937.9,0.00012677,2]
[326860385,1715519448520,-937.9,0.00012677,2]
[326860386,1715519448530,-937.9,0.00012677,2]
[326860387,1715519448540,-938.10917707,0.00012677,2]
[326860388,1715519448552,-500.0,0.00012678,2]
[326860389,1715519448561,-479.55936622,0.00012678,2]
[326860390,1715519448574,-20.44063378,0.00012678,2]
[326860391,1715519448584,-500.0,0.00012678,2]
[326860392,1715519448593,-500.0,0.00012678,2]
[326860393,1715519448602,-421.78944852,0.00012678,2]
[326860394,1715519448614,-886.39,0.00012678,2]
[326860395,1715519448625,-886.39,0.00012678,2]
[326860396,1715519448636,-500.0,0.00012678,2]
[326860397,1715519448646,-500.0,0.00012678,2]
[326860398,1715519448656,-348.3,0.00012678,2]
[326860399,1715519448666,-500.0,0.00012678,2]
[326860400,1715519448676,-833.39,0.00012678,2]
[326860401,1715519448687,-500.0,0.00012678,2]
[326860402,1715519448697,-833.39,0.00012678,2]
[326860403,1715519448707,-1773.36,0.00012678,2]
[326860404,1715519448717,-399.94198107,0.00012678,2]
[326860405,1715519448742,-1373.41801893,0.00012678,2]
[326860406,1715519448752,-1773.36,0.00012678,2]
[326860407,1715519448763,-1773.36,0.00012678,2]
[326860408,1715519448773,-1773.36,0.00012678,2]
[326860409,1715519448783,-1773.36,0.00012678,2]
[326860410,1715519448794,-1773.36,0.00012678,2]
[326860411,1715519448804,-1773.36,0.00012678,2]
[326860412,1715519448814,-1773.36,0.00012678,2]
[326860413,1715519448824,-917.88,0.00012678,2]
[326860414,1715519448834,-1773.36,0.00012678,2]
[326860415,1715519448844,-917.88,0.00012678,2]
[326860416,1715519448855,-1773.36,0.00012678,2]
[326860417,1715519448865,-649.15034685,0.00012678,2]
[326860418,1715519449860,-1211.78261411,0.00012676,2]
[326860419,1715519449870,-33.90182589,0.00012676,2]
[326860420,1715519449882,-487.63076947,0.00012676,2]
[326860421,1715519449892,-37.00490151,0.00012676,2]
[326860422,1715519449904,-118.4720607,0.00012676,2]
[326860423,1715519449914,-539.09,0.00012677,2]
[326860424,1715519449924,-539.09,0.00012677,2]
[326860425,1715519449940,-539.09,0.00012677,2]
[326860426,1715519449955,-471.49009413,0.00012677,2]
[326860427,1715519449989,-67.59990587,0.00012677,2]
[326860428,1715519449999,-310.65360389,0.00012677,2]
[326860429,1715519450012,-228.43639611,0.00012677,2]
[326860430,1715519450022,-539.09,0.00012677,2]
[326860431,1715519450033,-539.09,0.00012677,2]
[326860432,1715519450043,-53.70894712,0.00012677,2]
[326860443,1715520065709,1000.0,0.00025,120]
[326860444,1715520066130,1000.0,0.00025,120]
[326860445,1715520066488,1000.0,0.00025,120]
[326860446,1715520066895,1000.0,0.00025,120]
[326860447,1715520067289,1000.0,0.00025,120]
[326860448,1715520067746,1000.0,0.00025,120]
[326860449,1715520069198,1000.0,0.00025,120]
[326860450,1715520069432,1000.0,0.00025,120]
[326860451,1715520070497,1000.0,0.00025,120]
[326860452,1715520071765,1000.0,0.00025,120]
[326860453,1715520072079,1000.0,0.00025,120]
[326860454,1715520072546,1000.0,0.00025,120]
[326860455,1715520072980,1000.0,0.00025,120]
[326860456,1715520073440,1000.0,0.00025,120]
[326860457,1715520073946,1000.0,0.00025,120]
[326860458,1715520074395,1000.0,0.00025,120]
[326860459,1715520074971,1000.0,0.00025,120]
[326860460,1715520075403,1000.0,0.00025,120]
[326860461,1715520075864,1000.0,0.00025,120]
[326860462,1715520076428,1000.0,0.00025,120]
[326860463,1715520076796,1000.0,0.00025,120]
[326860464,1715520079855,1000.0,0.00025,120]
[326860465,1715520080042,1000.0,0.00025,120]
[326860466,1715520080343,1000.0,0.00025,120]
[326860467,1715520080614,1000.0,0.00025,120]
[326860468,1715520084960,468.36032696,0.00025,120]
[326860495,1715520632434,-262.86247652,0.00011505,2]
[326860496,1715520632443,-57.7285127,0.00011506,2]
[326860497,1715520632485,-458.11264878,0.00011506,2]
[326860498,1715520632494,-150.0,0.00011506,2]
[326860499,1715520632504,-341.88735122,0.00011507,2]
[326860500,1715520632535,-2018.65876141,0.00011507,2]
[326860501,1715520632544,-788.94409382,0.00011507,2]
[326860502,1715520632554,-217.20437047,0.00011507,2]
[326860503,1715520632566,-1063.06077755,0.00011508,2]
[326860504,1715520632576,-250.0,0.0001152,2]
[326860505,1715520632586,-155.60564957,0.00011528,2]
[326860506,1715520632596,-169.08,0.0001159,2]
[326860507,1715520632606,-3722.21084069,0.00011628,2]
[326860508,1715520632635,-584.49,0.00011628,2]
[326860509,1715520632648,-1302.24553177,0.00011628,2]
[326860510,1715520632690,-598.11050968,0.00011628,2]
[326860528,1715520638538,-5216.0,0.00011628,2]
[326860529,1715520638623,-4294.15871786,0.00011628,2]
[326860530,1715520638632,-800.0,0.00011635,2]
[326860531,1715520638642,-250.0,0.00011635,2]
[326860532,1715520638652,-324.11,0.00011673,2]
[326860533,1715520638661,-200.0,0.0001174,2]
[326860534,1715520638670,-173.54,0.00011838,2]
[326860535,1715520638680,-500.0,0.0001212,3]
[326860536,1715520638690,-346.8054998,0.00012397,2]
[326860537,1715520638700,-1000.0,0.000124,2]
[326860538,1715520638709,-1000.0,0.000125,2]
[326860539,1715520638718,-7500.0,0.00012575,2]
[326860540,1715520638727,-21411.38578128,0.00012576,2]
[326860541,1715520638742,-184662.47319308,0.00012576,2]
[326860542,1715520638752,-155.60564957,0.00012576,2]
[326860543,1715520638765,-582.34,0.00012576,2]
[326860544,1715520638775,-500.0,0.00012576,2]
[326860545,1715520638785,-500.0,0.00012576,2]
[326860546,1715520638794,-500.0,0.00012576,2]
[326860547,1715520638803,-402.69254812,0.00012576,2]
[326860548,1715520638813,-500.0,0.00012576,2]
[326860549,1715520638827,-500.0,0.00012576,2]
[326860550,1715520638836,-500.0,0.00012576,2]
[326860551,1715520638846,-1717.2,0.00012576,2]
[326860552,1715520638855,-36322.0317,0.00012577,2]
[326860553,1715520638863,-6946.8085,0.00012577,2]
[326860554,1715520638872,-1500.0,0.000126,2]
[326860555,1715520638881,-1500.0,0.000126,2]
[326860556,1715520638890,-1500.0,0.000126,2]
[326860557,1715520638899,-1500.0,0.000126,2]
[326860558,1715520638908,-1500.0,0.000126,2]
[326860559,1715520638917,-1500.0,0.000126,2]
[326860560,1715520638927,-1500.0,0.000126,2]
[326860561,1715520638936,-1500.0,0.000126,2]
[326860562,1715520638945,-1500.0,0.000126,2]
[326860563,1715520638954,-1640.36,0.000126,2]
[326860564,1715520638963,-155.0,0.00012672,2]
[326860565,1715520638973,-522.15446452,0.00012672,2]
[326860566,1715520638982,-156.4545868,0.00012672,2]
[326860567,1715520638991,-300.0,0.00012672,2]
[326860568,1715520639000,-275.43765033,0.00012672,2]
[326860569,1715520639010,-208.45002039,0.00012673,2]
[326860570,1715520639022,-549.29,0.00012673,2]
[326860571,1715520639032,-549.29,0.00012673,2]
[326860572,1715520639041,-816.88,0.00012673,2]
[326860573,1715520639050,-816.88,0.00012673,2]
[326860574,1715520639059,-1041.92,0.00012673,2]
[326860575,1715520639069,-1041.92,0.00012673,2]
[326860576,1715520639079,-628.78,0.00012673,2]
[326860577,1715520639089,-628.78,0.00012673,2]
[326860578,1715520639098,-500.0,0.00012673,2]
[326860579,1715520639107,-500.0,0.00012673,2]
[326860580,1715520639117,-500.0,0.00012673,2]
[326860581,1715520639130,-500.0,0.00012673,2]
[326860582,1715520639140,-500.0,0.00012673,2]
[326860583,1715520639150,-500.0,0.00012673,2]
[326860584,1715520639160,-586.8,0.00012673,2]
[326860585,1715520639170,-586.8,0.00012673,2]
[326860586,1715520639180,-644.34,0.00012673,2]
[326860587,1715520639189,-644.34,0.00012673,2]
[326860588,1715520639199,-4256.84,0.00012673,2]
[326860589,1715520639209,-4256.84,0.00012673,2]
[326860590,1715520639219,-500.0,0.00012673,2]
[326860591,1715520639229,-500.0,0.00012673,2]
[326860592,1715520639238,-500.0,0.00012673,2]
[326860593,1715520639247,-500.0,0.00012673,2]
[326860594,1715520639257,-786.84,0.00012673,2]
[326860595,1715520639269,-786.84,0.00012673,2]
[326860596,1715520639278,-2242.97,0.00012673,2]
[326860597,1715520639288,-2242.97,0.00012673,2]
[326860598,1715520639298,-1351.47,0.00012673,2]
[326860599,1715520639307,-1351.47,0.00012673,2]
[326860600,1715520639318,-1000.78,0.00012673,2]
[326860601,1715520639328,-1000.78,0.00012673,2]
[326860602,1715520639338,-500.0,0.00012673,2]
[326860603,1715520639347,-500.0,0.00012673,2]
[326860604,1715520639663,-883.51,0.00012673,2]
[326860605,1715520639681,-883.51,0.00012673,2]
[326860606,1715520639691,-5930.41,0.00012673,2]
[326860607,1715520639701,-5930.41,0.00012673,2]
[326860608,1715520639711,-500.0,0.00012673,2]
[326860609,1715520639720,-500.0,0.00012673,2]
[326860610,1715520639730,-500.0,0.00012673,2]
[326860611,1715520639741,-500.0,0.00012673,2]
[326860612,1715520639752,-500.0,0.00012673,2]
[326860613,1715520639762,-293.95,0.00012673,2]
[326860614,1715520639772,-500.0,0.00012673,2]
[326860615,1715520639783,-500.0,0.00012673,2]
[326860616,1715520639792,-500.0,0.00012673,2]
[326860617,1715520639801,-500.0,0.00012673,2]
[326860618,1715520639812,-4040.81,0.00012673,2]
[326860619,1715520639823,-4040.81,0.00012673,2]
[326860620,1715520639833,-810.39,0.00012673,2]
[326860621,1715520639844,-810.39,0.00012673,2]
[326860622,1715520639855,-582.34,0.00012673,2]
[326860623,1715520639866,-500.0,0.00012673,2]
[326860624,1715520639875,-533.98445258,0.00012673,2]
[326860625,1715520639885,-582.34,0.00012673,2]
[326860626,1715520639895,-582.34,0.00012673,2]
[326860627,1715520639904,-582.34,0.00012673,2]
[326860628,1715520639914,-500.0,0.00012673,2]
[326860629,1715520639923,-500.0,0.00012673,2]
[326860630,1715520639933,-500.0,0.00012673,2]
[326860631,1715520639942,-500.0,0.00012673,2]
[326860632,1715520639952,-500.0,0.00012673,2]
[326860633,1715520639961,-500.0,0.00012673,2]
[326860634,1715520639971,-500.0,0.00012673,2]
[326860635,1715520639981,-500.0,0.00012673,2]
[326860636,1715520639991,-2582.13,0.00012673,2]
[326860637,1715520640000,-500.0,0.00012673,2]
[326860638,1715520640010,-2582.13,0.00012673,2]
[326860639,1715520640023,-500.0,0.00012673,2]
[326860640,1715520640034,-500.0,0.00012673,2]
[326860641,1715520640043,-500.0,0.00012673,2]
[326860642,1715520640053,-1949.14,0.00012673,2]
[326860643,1715520640064,-500.0,0.00012673,2]
[326860644,1715520640074,-583.8,0.00012673,2]
[326860645,1715520640084,-1949.14,0.00012673,2]
[326860646,1715520640093,-500.0,0.00012673,2]
[326860647,1715520640103,-583.8,0.00012673,2]
[326860648,1715520640112,-500.0,0.00012673,2]
[326860649,1715520640122,-500.0,0.00012673,2]
[326860650,1715520640131,-588.525206,0.00012673,2]
[326860651,1715520640142,-500.0,0.00012673,2]
[326860652,1715520640151,-500.0,0.00012673,2]
[326860653,1715520640161,-500.0,0.00012673,2]
[326860654,1715520640171,-500.0,0.00012673,2]
[326860655,1715520640180,-1717.2,0.00012673,2]
[326860656,1715520640190,-1717.2,0.00012673,2]
[326860657,1715520640200,-1717.2,0.00012673,2]
[326860658,1715520640210,-1717.2,0.00012673,2]
[326860659,1715520640219,-500.0,0.00012673,2]
[326860660,1715520640229,-364.5783904,0.00012674,2]
[326860661,1715520640238,-39352.09980797,0.00012674,2]
[326860662,1715520640248,-842.03,0.00012674,2]
[326860663,1715520640258,-842.03,0.00012674,2]
[326860664,1715520640270,-14779.4,0.00012674,2]
[326860665,1715520640280,-14779.4,0.00012674,2]
[326860666,1715520640289,-31987.27,0.00012674,2]
[326860667,1715520640299,-31987.27,0.00012674,2]
[326860668,1715520640309,-31987.27,0.00012674,2]
[326860669,1715520640318,-31987.27,0.00012674,2]
[326860670,1715520640328,-31987.27,0.00012674,2]
[326860672,1715520640337,-1895.43,0.00012674,2]
[326860673,1715520640347,-1895.43,0.00012674,2]
[326860676,1715520640356,-500.0,0.00012674,2]
[326860677,1715520640365,-500.0,0.00012674,2]
[326860678,1715520640375,-2835.85,0.00012674,2]
[326860679,1715520640384,-2835.85,0.00012674,2]
[326860680,1715520640401,-3396.75,0.00012674,2]
[326860682,1715520640415,-3396.75,0.00012674,2]
[326860684,1715520640425,-3396.75,0.00012674,2]
[326860686,1715520640436,-5396.3,0.00012674,2]
[326860688,1715520640446,-3396.75,0.00012674,2]
[326860689,1715520640455,-5396.3,0.00012674,2]
[326860690,1715520640465,-3396.75,0.00012674,2]
[326860691,1715520640475,-1612.56,0.00012674,2]
[326860692,1715520640485,-1612.56,0.00012674,2]
[326860693,1715520640494,-1612.56,0.00012674,2]
[326860694,1715520640504,-1612.56,0.00012674,2]
[326860695,1715520640515,-1612.56,0.00012674,2]
[326860696,1715520640526,-733.74,0.00012674,2]
[326860697,1715520640535,-733.74,0.00012674,2]
[326860698,1715520640545,-733.74,0.00012674,2]
[326860699,1715520640555,-733.74,0.00012674,2]
[326860700,1715520640565,-733.74,0.00012674,2]
[326860701,1715520640574,-2588.03,0.00012674,2]
[326860702,1715520640584,-2588.03,0.00012674,2]
[326860703,1715520640593,-3425.9,0.00012674,2]
[326860704,1715520640607,-3425.9,0.00012674,2]
[326860705,1715520640616,-3425.9,0.00012674,2]